[Event "*** Titled Tuesday Blitz"]
[Site "Chess.com"]
[Date "2019.04.02"]
[Round "9"]
[White "Blitzstream"]
[Black "IakovUlivar"]
[Result "1/2-1/2"]
[WhiteElo "2680"]
[BlackElo "2544"]
[TimeControl "180+2"]
[EndTime "16:05:58 PDT"]
[Termination "Game drawn - insufficient material"]

1. e4 {[%clk 0:03:01.9]} 1... e5 {[%clk 0:02:59.9]} 2. Nf3 {[%clk 0:03:03]} 2...
Nc6 {[%clk 0:03:00.3]} 3. d4 {[%clk 0:03:04.9]} 3... exd4 {[%clk 0:03:00.5]} 4.
Nxd4 {[%clk 0:03:06.8]} 4... Bb4+ {[%clk 0:03:00.9]} 5. c3 {[%clk 0:03:06.8]}
5... Bc5 {[%clk 0:03:02.1]} 6. Be3 {[%clk 0:03:07.9]} 6... Bb6 {[%clk 0:03:03]}
7. Nd2 {[%clk 0:03:04.1]} 7... Nf6 {[%clk 0:02:59.9]} 8. Nxc6 {[%clk 0:02:58.2]}
8... bxc6 {[%clk 0:02:59.5]} 9. Bxb6 {[%clk 0:02:57]} 9... axb6 {[%clk
0:02:12.2]} 10. e5 {[%clk 0:02:55.4]} 10... Qe7 {[%clk 0:02:03.2]} 11. Qe2
{[%clk 0:02:55.9]} 11... Nd5 {[%clk 0:01:58.5]} 12. Qe4 {[%clk 0:02:14.2]} 12...
O-O {[%clk 0:01:27.5]} 13. Bd3 {[%clk 0:02:14.4]} 13... f5 {[%clk 0:01:27.9]}
14. exf6 {[%clk 0:02:12.6]} 14... Qxe4+ {[%clk 0:01:28.3]} 15. Nxe4 {[%clk
0:02:14.5]} 15... Nxf6 {[%clk 0:01:27.6]} 16. Nxf6+ {[%clk 0:02:08.1]} 16...
Rxf6 {[%clk 0:01:29.5]} 17. a3 {[%clk 0:02:02]} 17... d5 {[%clk 0:01:23.6]} 18.
f3 {[%clk 0:02:02.3]} 18... Bf5 {[%clk 0:01:08.5]} 19. Kd2 {[%clk 0:01:57.4]}
19... Bxd3 {[%clk 0:01:02.4]} 20. Kxd3 {[%clk 0:01:57.5]} 20... Re6 {[%clk
0:01:04.3]} 21. Rhe1 {[%clk 0:01:55.4]} 21... Kf7 {[%clk 0:01:05.3]} 22. Rxe6
{[%clk 0:01:55.1]} 22... Kxe6 {[%clk 0:01:07.2]} 23. Re1+ {[%clk 0:01:56.5]}
23... Kd6 {[%clk 0:01:05]} 24. f4 {[%clk 0:01:57.8]} 24... Rf8 {[%clk
0:00:55.5]} 25. g3 {[%clk 0:01:57.4]} 25... b5 {[%clk 0:00:51.7]} 26. h4 {[%clk
0:01:52.6]} 26... h5 {[%clk 0:00:43.4]} 27. Re5 {[%clk 0:01:52.5]} 27... g6
{[%clk 0:00:44]} 28. Rg5 {[%clk 0:01:52.5]} 28... Rf6 {[%clk 0:00:44.6]} 29. b4
{[%clk 0:00:42.3]} 29... c5 {[%clk 0:00:38.6]} 30. Re5 {[%clk 0:00:42.7]} 30...
Rf8 {[%clk 0:00:31.5]} 31. bxc5+ {[%clk 0:00:40.1]} 31... Kxc5 {[%clk
0:00:32.6]} 32. Re6 {[%clk 0:00:41.3]} 32... Rg8 {[%clk 0:00:32.3]} 33. Rf6
{[%clk 0:00:37]} 33... Rg7 {[%clk 0:00:25.2]} 34. Ra6 {[%clk 0:00:29.3]} 34...
c6 {[%clk 0:00:23.7]} 35. a4 {[%clk 0:00:29.9]} 35... bxa4 {[%clk 0:00:19.5]}
36. Rxa4 {[%clk 0:00:31.8]} 36... Re7 {[%clk 0:00:19]} 37. Ra8 {[%clk
0:00:29.5]} 37... Re6 {[%clk 0:00:10]} 38. Rd8 {[%clk 0:00:27.8]} 38... Rf6
{[%clk 0:00:04.4]} 39. Rd7 {[%clk 0:00:25]} 39... Re6 {[%clk 0:00:04.9]} 40. Rf7
{[%clk 0:00:25.1]} 40... Kd6 {[%clk 0:00:05.6]} 41. Ra7 {[%clk 0:00:12.8]} 41...
Re1 {[%clk 0:00:06.2]} 42. Rg7 {[%clk 0:00:12.7]} 42... Re6 {[%clk 0:00:07.6]}
43. f5 {[%clk 0:00:08.1]} 43... gxf5 {[%clk 0:00:07.3]} 44. Rg5 {[%clk
0:00:09.7]} 44... c5 {[%clk 0:00:05.3]} 45. Rxh5 {[%clk 0:00:05]} 45... Rg6
{[%clk 0:00:05.4]} 46. Rg5 {[%clk 0:00:03.7]} 46... Rxg5 {[%clk 0:00:04.3]} 47.
hxg5 {[%clk 0:00:05.6]} 47... Ke5 {[%clk 0:00:05.9]} 48. Ke3 {[%clk 0:00:06.5]}
48... Ke6 {[%clk 0:00:06.6]} 49. Kf4 {[%clk 0:00:05.7]} 49... d4 {[%clk
0:00:08]} 50. cxd4 {[%clk 0:00:06.6]} 50... cxd4 {[%clk 0:00:09.9]} 51. g4
{[%clk 0:00:06.7]} 51... fxg4 {[%clk 0:00:11.2]} 52. Kxg4 {[%clk 0:00:08.2]}
52... Kf7 {[%clk 0:00:12.3]} 53. Kf4 {[%clk 0:00:08.7]} 53... Kg6 {[%clk
0:00:14.2]} 54. Ke4 {[%clk 0:00:10.1]} 54... Kxg5 {[%clk 0:00:15.6]} 55. Kxd4
{[%clk 0:00:11.5]} 1/2-1/2

[Event "*** Titled Tuesday Blitz"]
[Site "Chess.com"]
[Date "2019.04.02"]
[Round "9"]
[White "novocane"]
[Black "black_pawn_16"]
[Result "1/2-1/2"]
[WhiteElo "2192"]
[BlackElo "2109"]
[TimeControl "180+2"]
[EndTime "16:06:03 PDT"]
[Termination "Game drawn by agreement"]

1. d4 {[%clk 0:03:01.8]} 1... f5 {[%clk 0:02:59.2]} 2. Bg5 {[%clk 0:03:02.1]}
2... h6 {[%clk 0:02:58.5]} 3. Bh4 {[%clk 0:03:03.3]} 3... g5 {[%clk 0:02:59]} 4.
e4 {[%clk 0:03:04.3]} 4... Nf6 {[%clk 0:02:59.4]} 5. e5 {[%clk 0:02:42.4]} 5...
e6 {[%clk 0:02:59]} 6. exf6 {[%clk 0:02:34.8]} 6... Qxf6 {[%clk 0:03:00.9]} 7.
Be2 {[%clk 0:02:10.6]} 7... gxh4 {[%clk 0:02:59.5]} 8. Bh5+ {[%clk 0:02:11.7]}
8... Kd8 {[%clk 0:02:57.8]} 9. Nh3 {[%clk 0:02:09.9]} 9... Nc6 {[%clk
0:02:57.5]} 10. c3 {[%clk 0:02:10.9]} 10... d6 {[%clk 0:02:54.6]} 11. O-O {[%clk
0:02:10.8]} 11... Be7 {[%clk 0:02:55]} 12. Nd2 {[%clk 0:02:10.4]} 12... Rg8
{[%clk 0:02:55]} 13. Kh1 {[%clk 0:02:08.2]} 13... Bd7 {[%clk 0:02:54.1]} 14. Qe2
{[%clk 0:02:06.7]} 14... a6 {[%clk 0:02:33.5]} 15. Rae1 {[%clk 0:02:03.6]} 15...
d5 {[%clk 0:02:27.1]} 16. Nf4 {[%clk 0:01:51]} 16... Qg5 {[%clk 0:02:22.4]} 17.
g3 {[%clk 0:01:43.1]} 17... Rf8 {[%clk 0:01:33.5]} 18. Nf3 {[%clk 0:01:09.2]}
18... Qg7 {[%clk 0:01:22.2]} 19. Nxe6+ {[%clk 0:01:03.9]} 19... Bxe6 {[%clk
0:01:24.1]} 20. Qxe6 {[%clk 0:01:04.5]} 20... Qg8 {[%clk 0:01:20.6]} 21. Qxg8
{[%clk 0:00:59.5]} 21... Rxg8 {[%clk 0:01:21.1]} 22. Bf7 {[%clk 0:01:00.4]}
22... Rf8 {[%clk 0:01:17.7]} 23. Bxd5 {[%clk 0:01:01]} 23... hxg3 {[%clk
0:01:16.3]} 24. fxg3 {[%clk 0:01:01.2]} 24... Bd6 {[%clk 0:01:16.8]} 25. Bxc6
{[%clk 0:00:58.9]} 25... bxc6 {[%clk 0:01:17.5]} 26. Ne5 {[%clk 0:01:00.6]}
26... c5 {[%clk 0:01:15.8]} 27. dxc5 {[%clk 0:00:56.6]} 27... Bxc5 {[%clk
0:01:16.5]} 28. Rd1+ {[%clk 0:00:54.6]} 28... Bd6 {[%clk 0:01:17]} 29. Nc4
{[%clk 0:00:41.2]} 29... Kd7 {[%clk 0:01:17.4]} 30. Nxd6 {[%clk 0:00:42.1]}
30... cxd6 {[%clk 0:01:18.3]} 31. Rd4 {[%clk 0:00:42.9]} 31... Rf6 {[%clk
0:01:15.4]} 32. Rfd1 {[%clk 0:00:30]} 32... Re8 {[%clk 0:01:13.7]} 33. R1d2
{[%clk 0:00:28.8]} 33... Re5 {[%clk 0:01:10.7]} 34. Kg2 {[%clk 0:00:28.2]} 34...
Kc6 {[%clk 0:01:08.9]} 35. Kf3 {[%clk 0:00:27.6]} 35... Rc5 {[%clk 0:01:06]} 36.
c4 {[%clk 0:00:21.7]} 36... a5 {[%clk 0:01:03.2]} 37. b3 {[%clk 0:00:22.9]}
37... Re6 {[%clk 0:01:01.5]} 38. a3 {[%clk 0:00:23.1]} 38... Rce5 {[%clk
0:01:02.2]} 39. b4 {[%clk 0:00:17.5]} 39... Re3+ {[%clk 0:00:54.3]} 40. Kf2
{[%clk 0:00:18.2]} 40... Rxa3 {[%clk 0:00:53.9]} 41. b5+ {[%clk 0:00:17.7]}
41... Kc7 {[%clk 0:00:54.5]} 42. Rd5 {[%clk 0:00:18.4]} 42... Rf6 {[%clk
0:00:53.5]} 43. c5 {[%clk 0:00:18.8]} 43... dxc5 {[%clk 0:00:52.3]} 44. Rxc5+
{[%clk 0:00:20]} 44... Kb6 {[%clk 0:00:53.3]} 45. Rdd5 {[%clk 0:00:21.9]} 45...
Rb3 {[%clk 0:00:53.7]} 46. Rxf5 {[%clk 0:00:22.2]} 46... Rxf5+ {[%clk
0:00:54.6]} 47. Rxf5 {[%clk 0:00:23.2]} 47... Rxb5 {[%clk 0:00:53]} 48. Rf6+
{[%clk 0:00:24.4]} 48... Kc7 {[%clk 0:00:53.9]} 49. Rxh6 {[%clk 0:00:26.3]}
49... Kd7 {[%clk 0:00:54.7]} 50. Ra6 {[%clk 0:00:27]} 50... Ke7 {[%clk
0:00:55.6]} 51. h4 {[%clk 0:00:22.7]} 51... Kf7 {[%clk 0:00:56.3]} 52. Kg2
{[%clk 0:00:24.1]} 52... Kg7 {[%clk 0:00:57.2]} 53. Kh3 {[%clk 0:00:25.4]} 53...
Rc5 {[%clk 0:00:58]} 54. Kg4 {[%clk 0:00:23.8]} 54... Rc4+ {[%clk 0:00:58.9]}
55. Kh3 {[%clk 0:00:24.1]} 55... Rc5 {[%clk 0:00:57.8]} 56. Kg2 {[%clk
0:00:19.6]} 56... Rc2+ {[%clk 0:00:56.6]} 57. Kf3 {[%clk 0:00:20.8]} 57... Rc3+
{[%clk 0:00:57.8]} 58. Kf2 {[%clk 0:00:22.3]} 58... Rc2+ {[%clk 0:00:58.9]} 59.
Ke3 {[%clk 0:00:23.2]} 59... Rc3+ {[%clk 0:01:00.2]} 60. Kf4 {[%clk 0:00:24.7]}
60... Rc4+ {[%clk 0:01:01.7]} 61. Ke5 {[%clk 0:00:24.8]} 61... Rg4 {[%clk
0:01:00.1]} 62. Rxa5 {[%clk 0:00:20.8]} 62... Rxg3 {[%clk 0:01:00.4]} 1/2-1/2

[Event "*** Titled Tuesday Blitz"]
[Site "Chess.com"]
[Date "2019.04.02"]
[Round "9"]
[White "Floatingdream1"]
[Black "nurgyulsalimova"]
[Result "1/2-1/2"]
[WhiteElo "2815"]
[BlackElo "2542"]
[TimeControl "180+2"]
[EndTime "16:06:42 PDT"]
[Termination "Game drawn by agreement"]

1. d4 {[%clk 0:03:01.9]} 1... Nf6 {[%clk 0:03:00.6]} 2. c4 {[%clk 0:03:02.5]}
2... e6 {[%clk 0:02:59]} 3. Nf3 {[%clk 0:03:03.6]} 3... d5 {[%clk 0:02:58.4]} 4.
g3 {[%clk 0:03:04.6]} 4... Be7 {[%clk 0:02:59.2]} 5. Bg2 {[%clk 0:03:05.8]} 5...
O-O {[%clk 0:03:00.5]} 6. O-O {[%clk 0:03:06.8]} 6... dxc4 {[%clk 0:03:01.6]} 7.
Ne5 {[%clk 0:03:05.2]} 7... c5 {[%clk 0:03:02.4]} 8. dxc5 {[%clk 0:03:05.8]}
8... Qc7 {[%clk 0:03:03.5]} 9. Nxc4 {[%clk 0:03:06.9]} 9... Qxc5 {[%clk
0:03:04.7]} 10. Nba3 {[%clk 0:03:08.3]} 10... Rd8 {[%clk 0:03:03.7]} 11. Qb3
{[%clk 0:03:08]} 11... Nc6 {[%clk 0:03:00.8]} 12. Be3 {[%clk 0:02:42.3]} 12...
Qh5 {[%clk 0:03:00.3]} 13. h3 {[%clk 0:02:43.5]} 13... Qxe2 {[%clk 0:02:56.7]}
14. Rfd1 {[%clk 0:02:41.7]} 14... Nd5 {[%clk 0:02:46.8]} 15. Rd2 {[%clk
0:02:30.3]} 15... Qh5 {[%clk 0:02:45.4]} 16. Rad1 {[%clk 0:02:30.6]} 16... Nxe3
{[%clk 0:02:32.3]} 17. Rxd8+ {[%clk 0:02:29.2]} 17... Bxd8 {[%clk 0:02:21.1]}
18. Nxe3 {[%clk 0:02:28.8]} 18... Be7 {[%clk 0:01:55.1]} 19. Nb5 {[%clk
0:02:27.7]} 19... Qc5 {[%clk 0:01:13]} 20. Kh2 {[%clk 0:02:07.5]} 20... Rb8
{[%clk 0:01:08.8]} 21. Rd2 {[%clk 0:02:03.1]} 21... a6 {[%clk 0:01:05.2]} 22.
Nc3 {[%clk 0:02:01.3]} 22... b5 {[%clk 0:00:54]} 23. Ne4 {[%clk 0:01:46.8]}
23... Qb6 {[%clk 0:00:54.5]} 24. Nd6 {[%clk 0:01:46.4]} 24... Nd4 {[%clk
0:00:38.4]} 25. Qc3 {[%clk 0:01:21.8]} 25... Bxd6 {[%clk 0:00:30.2]} 26. Qxd4
{[%clk 0:01:21.8]} 26... Qxd4 {[%clk 0:00:24.4]} 27. Rxd4 {[%clk 0:01:22.6]}
27... Be7 {[%clk 0:00:25.7]} 28. Rd3 {[%clk 0:01:20.7]} 28... Kf8 {[%clk
0:00:21.6]} 29. b3 {[%clk 0:01:20.6]} 29... a5 {[%clk 0:00:21.1]} 30. Be4 {[%clk
0:01:17.4]} 30... Ba6 {[%clk 0:00:17.6]} 31. Rd7 {[%clk 0:01:14.7]} 31... Bc5
{[%clk 0:00:10]} 32. Kg2 {[%clk 0:01:01.1]} 32... Bb6 {[%clk 0:00:07.7]} 33. Bf3
{[%clk 0:00:55.4]} 33... Rd8 {[%clk 0:00:08.5]} 34. Rxd8+ {[%clk 0:00:53.9]}
34... Bxd8 {[%clk 0:00:10.4]} 35. Be2 {[%clk 0:00:54.8]} 35... Bb6 {[%clk
0:00:10.1]} 36. Kf1 {[%clk 0:00:53.9]} 36... Ke7 {[%clk 0:00:06.8]} 37. a4
{[%clk 0:00:54.9]} 37... Bxe3 {[%clk 0:00:07.4]} 38. axb5 {[%clk 0:00:49.5]}
38... Bxb5 {[%clk 0:00:08]} 39. Bxb5 {[%clk 0:00:50.3]} 39... Bb6 {[%clk
0:00:08.5]} 40. Ke2 {[%clk 0:00:51.8]} 40... Kd6 {[%clk 0:00:09.8]} 41. f4
{[%clk 0:00:51.8]} 41... f6 {[%clk 0:00:10.6]} 42. Kf3 {[%clk 0:00:51.9]} 42...
Kc5 {[%clk 0:00:11.7]} 43. Ba4 {[%clk 0:00:52.2]} 43... Kd4 {[%clk 0:00:12.4]}
44. Bc6 {[%clk 0:00:49.9]} 44... Kc3 {[%clk 0:00:12.2]} 45. Ba4 {[%clk
0:00:49.1]} 45... Bc7 {[%clk 0:00:13.2]} 46. Ke4 {[%clk 0:00:49.6]} 46... f5+
{[%clk 0:00:11.1]} 47. Kf3 {[%clk 0:00:44]} 47... h6 {[%clk 0:00:11.9]} 48. g4
{[%clk 0:00:44.7]} 48... g5 {[%clk 0:00:10.1]} 49. fxg5 {[%clk 0:00:44.6]} 49...
hxg5 {[%clk 0:00:10.8]} 50. gxf5 {[%clk 0:00:45.7]} 50... exf5 {[%clk
0:00:11.8]} 51. Kg2 {[%clk 0:00:47.1]} 51... Be5 {[%clk 0:00:11.4]} 52. Kf3
{[%clk 0:00:48]} 52... Bd6 {[%clk 0:00:10.4]} 53. Kg2 {[%clk 0:00:49]} 53... Kd3
{[%clk 0:00:11.2]} 54. Kf3 {[%clk 0:00:50.1]} 54... Kd4 {[%clk 0:00:12.3]} 55.
Bd7 {[%clk 0:00:50.7]} 55... Ke5 {[%clk 0:00:13.4]} 56. Ba4 {[%clk 0:00:51]}
56... Kf6 {[%clk 0:00:14.2]} 57. Bb5 {[%clk 0:00:52.2]} 57... Bc5 {[%clk
0:00:14.1]} 58. Bd7 {[%clk 0:00:53.1]} 58... Kg6 {[%clk 0:00:15.2]} 59. Bc8
{[%clk 0:00:53.8]} 59... Bb6 {[%clk 0:00:14.7]} 60. Bd7 {[%clk 0:00:54.7]} 60...
Bd4 {[%clk 0:00:15.7]} 61. Bc8 {[%clk 0:00:55.6]} 61... Be5 {[%clk 0:00:16.9]}
62. Bd7 {[%clk 0:00:56.6]} 62... Bc7 {[%clk 0:00:18.1]} 63. Bc8 {[%clk
0:00:57.7]} 63... Kf6 {[%clk 0:00:19.3]} 64. Bd7 {[%clk 0:00:58.9]} 64... Ke5
{[%clk 0:00:19.6]} 65. Bc8 {[%clk 0:01:00.2]} 65... Bb6 {[%clk 0:00:20.7]} 66.
Bd7 {[%clk 0:01:01.2]} 66... Bd4 {[%clk 0:00:21.8]} 67. Bc8 {[%clk 0:01:02.2]}
67... Bc5 {[%clk 0:00:23.2]} 68. Bd7 {[%clk 0:01:03.2]} 68... Be7 {[%clk
0:00:24.3]} 69. Bc8 {[%clk 0:01:04.2]} 69... f4 {[%clk 0:00:24.3]} 70. Bd7
{[%clk 0:01:04.6]} 70... Kd4 {[%clk 0:00:24.8]} 71. Ba4 {[%clk 0:01:05.4]} 71...
Kc3 {[%clk 0:00:25.9]} 72. Kg4 {[%clk 0:01:06.6]} 72... Kd3 {[%clk 0:00:26.6]}
73. Kf3 {[%clk 0:01:07.5]} 73... Kd2 {[%clk 0:00:27.6]} 74. Bb5 {[%clk 0:01:07]}
74... Ke1 {[%clk 0:00:28.4]} 75. Bd7 {[%clk 0:01:06.9]} 75... Kd2 {[%clk
0:00:29.4]} 76. Ba4 {[%clk 0:01:07.7]} 76... Ke1 {[%clk 0:00:30.4]} 77. Bd7
{[%clk 0:01:07.2]} 77... Kf1 {[%clk 0:00:31]} 78. Bg4 {[%clk 0:01:05.8]} 78...
Kg1 {[%clk 0:00:31.9]} 79. Bf5 {[%clk 0:01:07.2]} 79... Kh2 {[%clk 0:00:32.8]}
80. Bg4 {[%clk 0:01:08.4]} 80... Kg1 {[%clk 0:00:33.1]} 81. Bd7 {[%clk
0:01:09.3]} 1/2-1/2

[Event "*** Titled Tuesday Blitz"]
[Site "Chess.com"]
[Date "2019.04.02"]
[Round "9"]
[White "Caisachess"]
[Black "stepanosinovsky"]
[Result "0-1"]
[WhiteElo "2408"]
[BlackElo "2344"]
[TimeControl "180+2"]
[EndTime "16:07:03 PDT"]
[Termination "stepanosinovsky won by checkmate"]

1. e4 {[%clk 0:03:01.9]} 1... e5 {[%clk 0:02:59.9]} 2. Nf3 {[%clk 0:03:02.3]}
2... Nc6 {[%clk 0:03:01.2]} 3. Bc4 {[%clk 0:03:03.9]} 3... Nf6 {[%clk
0:03:01.9]} 4. d3 {[%clk 0:03:05.2]} 4... Be7 {[%clk 0:03:02.9]} 5. O-O {[%clk
0:03:05.5]} 5... O-O {[%clk 0:03:03.7]} 6. a4 {[%clk 0:03:06]} 6... d5 {[%clk
0:03:02.8]} 7. exd5 {[%clk 0:03:05.2]} 7... Nxd5 {[%clk 0:03:04.7]} 8. Bb5
{[%clk 0:03:06.5]} 8... Bg4 {[%clk 0:02:47.5]} 9. h3 {[%clk 0:03:05.8]} 9...
Bxf3 {[%clk 0:02:35.6]} 10. Qxf3 {[%clk 0:03:05.7]} 10... Nd4 {[%clk 0:02:37.2]}
11. Qd1 {[%clk 0:03:04.8]} 11... Nxb5 {[%clk 0:02:30.4]} 12. axb5 {[%clk
0:03:06.7]} 12... Qd7 {[%clk 0:02:31.4]} 13. Nd2 {[%clk 0:02:39.6]} 13... Nb4
{[%clk 0:02:20.8]} 14. Nf3 {[%clk 0:02:15.9]} 14... f6 {[%clk 0:02:06.9]} 15. d4
{[%clk 0:02:05.2]} 15... Qxb5 {[%clk 0:01:25.1]} 16. dxe5 {[%clk 0:02:00.9]}
16... fxe5 {[%clk 0:01:24.9]} 17. Re1 {[%clk 0:01:37.4]} 17... Bd6 {[%clk
0:01:22.5]} 18. Bd2 {[%clk 0:01:28]} 18... Nc6 {[%clk 0:01:19.5]} 19. Bc3 {[%clk
0:01:26.2]} 19... a6 {[%clk 0:01:18.9]} 20. Qd2 {[%clk 0:01:18.8]} 20... Rae8
{[%clk 0:01:18.5]} 21. Re4 {[%clk 0:01:16.2]} 21... Nd4 {[%clk 0:00:38.3]} 22.
Bxd4 {[%clk 0:01:07.6]} 22... exd4 {[%clk 0:00:38.3]} 23. Rxe8 {[%clk
0:01:08.1]} 23... Rxe8 {[%clk 0:00:36]} 24. Qxd4 {[%clk 0:01:04.5]} 24... Re2
{[%clk 0:00:34.5]} 25. Re1 {[%clk 0:00:59]} 25... Rxe1+ {[%clk 0:00:33]} 26.
Nxe1 {[%clk 0:00:59.6]} 26... Qc5 {[%clk 0:00:31.5]} 27. Qe4 {[%clk 0:00:56.8]}
27... Qe5 {[%clk 0:00:27.1]} 28. Qxe5 {[%clk 0:00:51.7]} 28... Bxe5 {[%clk
0:00:29]} 29. Nd3 {[%clk 0:00:52]} 29... Bd6 {[%clk 0:00:30.1]} 30. g3 {[%clk
0:00:53.2]} 30... Kf7 {[%clk 0:00:30.1]} 31. Kg2 {[%clk 0:00:54.7]} 31... Ke6
{[%clk 0:00:31.6]} 32. Kf3 {[%clk 0:00:56.1]} 32... Kd5 {[%clk 0:00:31.7]} 33.
Kg4 {[%clk 0:00:55.5]} 33... a5 {[%clk 0:00:31.2]} 34. h4 {[%clk 0:00:55.5]}
34... b5 {[%clk 0:00:32.2]} 35. Kf5 {[%clk 0:00:54.6]} 35... a4 {[%clk 0:00:32]}
36. c3 {[%clk 0:00:36.9]} 36... c5 {[%clk 0:00:31.9]} 37. g4 {[%clk 0:00:37.3]}
37... b4 {[%clk 0:00:26.5]} 38. cxb4 {[%clk 0:00:38.1]} 38... cxb4 {[%clk
0:00:28.4]} 39. h5 {[%clk 0:00:36.2]} 39... Kc4 {[%clk 0:00:22.1]} 40. Nc1
{[%clk 0:00:35.6]} 40... Bc5 {[%clk 0:00:21.2]} 41. f4 {[%clk 0:00:33.9]} 41...
Be3 {[%clk 0:00:22.1]} 42. Ne2 {[%clk 0:00:32.8]} 42... a3 {[%clk 0:00:22.5]}
43. bxa3 {[%clk 0:00:33.3]} 43... bxa3 {[%clk 0:00:24.4]} 44. Ke4 {[%clk
0:00:34.1]} 44... a2 {[%clk 0:00:24.8]} 45. Kxe3 {[%clk 0:00:34.1]} 45... a1=Q
{[%clk 0:00:26.1]} 46. Kf3 {[%clk 0:00:35.4]} 46... Qa3+ {[%clk 0:00:26.6]} 47.
Kf2 {[%clk 0:00:35.8]} 47... Qc5+ {[%clk 0:00:27.3]} 48. Kf3 {[%clk 0:00:37]}
48... Qd5+ {[%clk 0:00:28.2]} 49. Kf2 {[%clk 0:00:38.1]} 49... Qe4 {[%clk
0:00:27.9]} 50. g5 {[%clk 0:00:36.9]} 50... Qh1 {[%clk 0:00:26.6]} 51. Ng3
{[%clk 0:00:37]} 51... Qh2+ {[%clk 0:00:25.5]} 52. Kf3 {[%clk 0:00:37.9]} 52...
Kd3 {[%clk 0:00:25.4]} 53. f5 {[%clk 0:00:39]} 53... Qh4 {[%clk 0:00:25.7]} 54.
g6 {[%clk 0:00:36.4]} 54... hxg6 {[%clk 0:00:26.4]} 55. hxg6 {[%clk 0:00:37.5]}
55... Qd4 {[%clk 0:00:27]} 56. Nh5 {[%clk 0:00:32.6]} 56... Qe3+ {[%clk
0:00:26.5]} 57. Kg4 {[%clk 0:00:33.8]} 57... Qe4+ {[%clk 0:00:23.6]} 58. Kg5
{[%clk 0:00:30.7]} 58... Qg2+ {[%clk 0:00:23.9]} 59. Kf4 {[%clk 0:00:29.9]}
59... Qh2+ {[%clk 0:00:24.4]} 60. Kg5 {[%clk 0:00:31.1]} 60... Qe5 {[%clk
0:00:25.3]} 61. Nxg7 {[%clk 0:00:26.5]} 61... Qxg7 {[%clk 0:00:21.2]} 62. f6
{[%clk 0:00:27.8]} 62... Qc7 {[%clk 0:00:21.8]} 63. g7 {[%clk 0:00:28.4]} 63...
Qf7 {[%clk 0:00:21.9]} 64. Kf5 {[%clk 0:00:25.9]} 64... Kd4 {[%clk 0:00:22.2]}
65. Kg5 {[%clk 0:00:17.9]} 65... Kd5 {[%clk 0:00:21.5]} 66. Kh6 {[%clk
0:00:17.9]} 66... Qxf6+ {[%clk 0:00:22.7]} 67. Kh7 {[%clk 0:00:19.2]} 67... Qh4+
{[%clk 0:00:23.6]} 68. Kg8 {[%clk 0:00:20.5]} 68... Qg5 {[%clk 0:00:23]} 69. Kf8
{[%clk 0:00:21.5]} 69... Qf5+ {[%clk 0:00:24]} 70. Ke7 {[%clk 0:00:22.2]} 70...
Qe6+ {[%clk 0:00:24.7]} 71. Kf8 {[%clk 0:00:23.4]} 71... Qf6+ {[%clk 0:00:25.8]}
72. Kg8 {[%clk 0:00:23.8]} 72... Ke6 {[%clk 0:00:26.9]} 73. Kh8 {[%clk 0:00:25]}
73... Qh4+ {[%clk 0:00:27.5]} 74. Kg8 {[%clk 0:00:25.6]} 74... Qh5 {[%clk
0:00:28.6]} 75. Kf8 {[%clk 0:00:23.7]} 75... Qf7# {[%clk 0:00:29.9]} 0-1